bitfinex/quotes_ETHUSD_20240819
["timestamp","ask_amount","ask_price","bid_price","bid_amount"]
[1724095874043,0.9732,2612.0,2611.6,7.65803]
[1724095874237,0.9732,2612.0,2611.7,3.82889]
[1724095876054,0.9732,2612.0,2611.7,3.82885]
[1724095876460,0.9732,2612.0,2611.7,3.82884]
[1724095876658,2.372,2612.2,2611.8,3.82877]
[1724095876961,6.20027,2612.2,2611.7,3.82884]
[1724095877145,3.82835,2612.1,2611.7,3.82884]
[1724095877347,5.227391,2612.1,2611.7,3.82884]
[1724095877769,1.399041,2612.1,2611.7,3.82881]
[1724095877920,2.372,2612.2,2611.8,3.82876]
[1724095878831,2.372,2612.2,2612.0,3.82841]
[1724095879169,21.8943,2612.4,2612.0,3.82835]
[1724095879335,2.3743,2612.4,2612.0,3.82835]
[1724095880722,2.3743,2612.4,2612.1,3.82831]
[1724095880928,2.3579,2612.6,2612.2,3.8281]
[1724095881458,2.3579,2612.6,2612.1,3.82831]
[1724095881459,6.18552,2612.6,2612.1,3.82832]
[1724095882568,3.82777,2612.5,2612.1,3.82832]
[1724095882722,2.2741,2612.4,2612.0,3.82847]
[1724095883363,2.2741,2612.4,2612.1,0.05221677]
[1724095886178,3.82777,2612.5,2612.1,0.05221677]
[1724095886179,6.10109,2612.2,2612.1,0.05221677]
[1724095886349,10.935589,2612.2,2612.1,0.05221677]
[1724095886547,10.935589,2612.2,2611.3,3.82939]
[1724095886548,3.82865,2611.9,2611.4,3.82935]
[1724095886951,3.82865,2611.9,2611.5,0.05061233]
[1724095887343,3.82865,2611.9,2611.5,3.87981233]
[1724095888375,3.82865,2611.9,2611.5,0.05061233]
[1724095888578,2.2676,2611.8,2611.5,0.05061233]
[1724095888881,1.005825,2611.9,2610.8,3.83013]
[1724095888882,2.4344,2611.5,2610.8,3.83013]
[1724095889084,6.26371,2611.5,2610.8,3.83013]
[1724095889244,6.26371,2611.5,2610.9,3.83]
[1724095890324,6.26371,2611.5,2611.0,3.82993]
[1724095890441,6.2637,2611.5,2611.0,3.82993]
[1724095891139,10.09301,2611.5,2611.0,3.82993]
[1724095891378,6.2637,2611.5,2611.0,3.82993]
[1724095891578,10.09303,2611.5,2611.0,3.82993]
[1724095891741,6.2637,2611.5,2611.0,3.82993]
[1724095892143,6.2637,2611.5,2610.8,3.83013]
[1724095892144,3.82952,2611.3,2610.8,3.83013]
[1724095892379,6.32406,2611.2,2610.7,3.83038]
[1724095892674,6.32406,2611.2,2610.5,3.83064]
[1724095892675,3.82982,2611.1,2610.5,3.83064]
[1724095892885,3.82997,2611.0,2610.5,3.83064]
[1724095893442,6.3281,2610.9,2610.4,3.83073]
[1724095895165,6.3281,2610.9,2610.5,3.83067]
[1724095895427,6.3281,2610.9,2610.5,3.88006467]
[1724095895550,3.82995,2611.0,2610.5,3.88006467]
[1724095895875,3.8299,2611.1,2610.5,3.88006467]
[1724095895876,2.2537,2611.1,2610.5,3.88006467]
[1724095896193,3.83,2611.0,2610.5,3.88006467]
[1724095897090,3.8301,2610.9,2610.5,0.04939467]
[1724095897657,2.3322,2610.8,2610.5,0.04939467]
[1724095897885,3.83046,2610.7,2610.5,0.04939467]
[1724095898206,3.83046,2610.7,2610.2,3.83101]
[1724095898404,3.83046,2610.7,2610.6,0.05051439]
[1724095898578,3.83046,2610.7,2610.2,3.83101]
[1724095898761,3.83046,2610.7,2610.6,0.05051439]
[1724095899284,3.83046,2610.7,2610.3,3.83096]
[1724095899485,3.83046,2610.7,2610.6,0.05051439]
[1724095899826,3.83046,2610.7,2610.3,3.83096]
[1724095899956,3.83046,2610.7,2610.6,0.05051439]
[1724095900152,3.83046,2610.7,2610.3,3.83096]
[1724095900407,3.83046,2610.7,2610.6,0.05051439]
[1724095900609,3.83046,2610.7,2610.3,3.83096]
[1724095900899,7.65978,2611.1,2610.4,3.83072]
[1724095901122,6.25752,2611.0,2610.5,3.83061]
[1724095901250,3.83011,2610.9,2610.5,3.83061]
[1724095901456,3.83011,2610.9,2610.6,0.05057462]
[1724095902273,3.83027,2610.8,2610.4,3.83082]
[1724095902478,3.83027,2610.8,2610.7,0.05056257]
[1724095902792,3.83011,2610.9,2610.4,3.83072]
[1724095902997,3.83011,2610.9,2610.7,0.05056257]
[1724095903289,3.83011,2610.9,2610.8,0.05056257]
[1724095903497,3.82995,2611.0,2610.4,6.603092]
[1724095903696,3.82995,2611.0,2610.8,0.05056257]
[1724095903896,3.82995,2611.0,2610.6,3.83052]
[1724095904078,3.82995,2611.0,2610.9,0.05056257]
[1724095904284,3.82995,2611.0,2610.6,3.83052]
[1724095904479,3.82995,2611.0,2610.9,0.05056257]
[1724095904685,3.82995,2611.0,2610.6,3.83052]
[1724095904938,3.82995,2611.0,2610.9,0.05056257]
[1724095905182,9.7875,2611.2,2610.8,3.83022]
[1724095905383,13.61716,2611.2,2610.9,0.05056257]
[1724095907581,9.7875,2611.2,2610.9,0.05056257]
[1724095907891,13.61717,2611.2,2610.9,0.05056257]
[1724095908456,17.44691,2611.2,2610.9,0.05056257]
[1724095908657,13.61717,2611.2,2610.9,0.05056257]
[1724095908896,6.25717,2611.2,2610.9,0.05056257]
[1724095909482,2.4275,2611.2,2610.9,0.05056257]
[1724095909687,2.4275,2611.2,2610.9,4.26861283]
[1724095909993,3.82942,2611.4,2610.9,3.88054257]
[1724095909994,3.82959,2611.3,2610.9,3.88054257]
[1724095912687,7.36,2611.6,2611.0,6.22543]
[1724095912876,7.36,2611.6,2611.2,3.82964]
[1724095913072,6.17445,2611.7,2611.3,3.82949]
[1724095913273,6.17445,2611.7,2611.2,3.82964]
[1724095913498,6.17445,2611.7,2611.4,0.05033976]
[1724095913673,3.8291,2611.6,2611.2,3.82964]
[1724095913995,3.8291,2611.6,2611.5,0.0501772]
[1724095914200,3.8291,2611.6,2611.0,6.22543]
[1724095914201,3.82923,2611.5,2611.0,6.22543]
[1724095914500,3.82923,2611.5,2610.9,3.83002]
[1724095914501,3.82942,2611.4,2610.9,3.83002]
[1724095914819,3.82957,2611.3,2610.9,3.83002]
[1724095915118,0.8013183,2611.6,2610.9,3.83002]
[1724095915119,3.82937,2611.4,2610.9,3.83002]
[1724095915970,3.82951,2611.3,2610.9,3.83002]
[1724095916492,3.82982,2611.1,2610.7,3.83027]
[1724095916707,4.829955,2611.3,2610.5,3.83067]
[1724095916708,2.3454,2611.0,2610.5,3.83067]
[1724095916905,6.17542,2611.0,2610.5,3.83067]
[1724095917094,3.8301,2610.9,2610.4,6.22632]
[1724095917417,2.3454,2611.0,2610.3,3.83085]
[1724095917418,3.83026,2610.8,2610.3,3.83085]
[1724095917606,3.83026,2610.8,2610.4,3.83081]
[1724095918311,3.83059,2610.6,2610.2,6.22659]
[1724095918505,3.83059,2610.6,2609.7,4.68835333]
[1724095918506,3.83059,2610.6,2610.1,3.83125]
[1724095918669,3.83059,2610.6,2610.2,3.83105]
[1724095919700,6.1758,2610.7,2610.2,7.6621]
[1724095919967,6.1758,2610.7,2610.2,3.83105]
[1724095920276,6.1758,2610.7,2610.2,3.83103]
[1724095920477,3.83055,2610.6,2610.2,3.83103]
[1724095921081,6.1758,2610.7,2610.2,3.83103]
[1724095921279,6.1758,2610.7,2610.2,4.4919755]
[1724095921521,6.1758,2610.7,2610.2,8.3230355]
[1724095921693,10.00629,2610.7,2610.2,4.4919755]
[1724095922025,6.1758,2610.7,2610.2,4.4919755]
[1724095922223,6.1758,2610.7,2610.2,8.3230355]
[1724095922423,6.1758,2610.7,2610.2,4.4919755]
[1724095922794,3.8303,2610.8,2610.4,3.83082]
[1724095923279,6.26349,2610.7,2610.2,4.4919755]
[1724095923479,6.26349,2610.7,2610.2,3.83101]
[1724095924312,6.26349,2610.7,2610.2,7.66206]
[1724095924528,6.26349,2610.7,2610.3,3.83097]
[1724095926017,6.26349,2610.7,2610.2,3.8311]
[1724095926213,3.83056,2610.6,2610.1,4.214385]
[1724095926416,6.26349,2610.7,2609.9,7.66291]
[1724095926417,3.8307,2610.5,2609.9,7.66291]
[1724095926631,6.09745,2610.4,2609.7,2.2816]
[1724095926985,2.2665,2610.4,2610.0,3.83135]
[1724095927541,6.09734,2610.4,2610.0,3.83135]
[1724095927747,3.83103,2610.3,2609.9,3.83156]
[1724095927920,6.09735,2610.4,2609.9,7.66312]
[1724095928121,6.09735,2610.4,2609.9,3.83156]
[1724095928320,9.92829,2610.4,2610.0,0.05059874]
[1724095928561,6.09735,2610.4,2610.0,0.05059874]
[1724095929658,3.83103,2610.3,2610.0,0.05059874]
[1724095929859,7.090151,2610.4,2610.0,0.05059874]
[1724095930172,2.2665,2610.4,2610.1,3.83126]
[1724095930326,2.2665,2610.4,2610.1,3.88202741]
[1724095930522,6.28597,2610.7,2610.3,3.83093]
[1724095930754,6.28597,2610.7,2610.2,3.8311]
[1724095930957,10.11646,2610.7,2610.4,0.05076741]
[1724095931150,10.11646,2610.7,2610.2,3.8311]
[1724095931333,10.11644,2610.7,2610.5,0.05076741]
[1724095931558,10.11644,2610.7,2610.2,3.8311]
[1724095931559,6.28597,2610.7,2610.2,3.8311]
[1724095932435,3.83054,2610.6,2610.2,3.8311]
[1724095933381,3.8309,2610.4,2610.0,3.8313]
[1724095933523,3.8309,2610.4,2610.3,0.05076741]
[1724095933857,3.8309,2610.4,2610.0,3.8313]
[1724095934262,3.8309,2610.4,2610.1,0.05104448]
[1724095934971,3.83105,2610.3,2609.9,3.83149]
[1724095935173,3.83105,2610.3,2610.2,0.05104448]
[1724095935404,2.2728,2610.1,2609.7,3.83183]
[1724095935695,2.2728,2610.1,2609.5,3.83214]
[1724095935696,3.83145,2610.0,2609.5,3.83214]
[1724095935840,3.83156,2609.9,2609.8,0.05086115]
[1724095936202,6.1041,2610.1,2609.5,3.83206]
[1724095936485,3.83142,2610.0,2609.8,0.05086115]
[1724095936686,3.83142,2610.0,2609.5,3.83206]
[1724095936992,6.71451,2610.1,2609.5,3.83206]
[1724095937198,2.2728,2610.1,2609.8,3.83163]
[1724095937578,2.2728,2610.1,2609.9,0.05101781]
[1724095937935,2.2728,2610.4,2609.9,0.05101781]
[1724095938138,2.2728,2610.4,2610.0,3.8314]
[1724095938440,2.2728,2610.4,2610.0,3.88241781]
[1724095939176,6.10363,2610.4,2610.0,0.05101781]
[1724095940254,6.10363,2610.4,2610.0,3.88241781]
[1724095940762,9.6946,2610.7,2610.1,3.83115]
[1724095940978,9.6946,2610.7,2610.0,3.08551459]
[1724095940979,13.52506,2610.7,2610.2,3.83105]
[1724095941178,13.52506,2610.7,2610.2,3.88197742]
[1724095941642,6.16506,2610.7,2610.2,3.88197742]
[1724095941842,7.164598,2610.7,2610.2,3.88197742]
[1724095943165,2.3346,2610.7,2610.2,3.88196742]
[1724095943498,3.83017,2610.9,2610.4,3.83075]
[1724095943996,3.83024,2610.8,2610.5,0.05080091]
[1724095944158,6.21466,2610.7,2610.5,0.05080091]
[1724095944370,7.21915,2610.7,2610.2,3.83103]
[1724095944559,6.21466,2610.7,2610.6,0.05080091]
[1724095944764,6.21466,2610.7,2610.2,3.83103]
[1724095944968,6.21466,2610.7,2610.6,0.05077682]
[1724095945172,6.21466,2610.7,2610.2,3.83103]
[1724095945386,6.21466,2610.7,2610.6,0.05077682]
[1724095945587,7.21915,2610.7,2610.2,3.83103]
[1724095945783,6.21466,2610.7,2610.6,0.05077682]
[1724095946012,2.4529,2610.9,2610.5,3.8306]
[1724095946175,2.4529,2610.9,2610.6,0.05077682]
[1724095947054,2.4529,2610.9,2610.6,3.88129682]
[1724095947280,2.4529,2610.9,2610.6,0.05077682]
[1724095947587,2.4529,2610.9,2610.7,0.05077682]
[1724095947757,2.4529,2610.9,2610.5,3.83066]
[1724095947958,2.4529,2610.9,2610.8,0.05077682]
[1724095948284,2.4529,2610.9,2610.5,3.83061]
[1724095948588,2.4529,2610.9,2610.5,3.83067]
[1724095948884,6.28299,2610.9,2610.6,0.05077682]
[1724095949287,2.4529,2610.9,2610.6,3.88130682]
[1724095950100,7.36,2611.1,2610.7,3.83028]
[1724095950416,7.36,2611.1,2610.9,3.83002]
[1724095950791,7.36,2611.1,2610.7,3.83026]
[1724095950987,7.36,2611.1,2611.0,0.05077682]
[1724095951188,6.19425,2611.2,2610.7,7.66057]
[1724095951401,6.19425,2611.2,2611.0,0.05077682]
[1724095951581,7.18701703,2611.2,2610.7,3.83026]
[1724095951781,7.18701703,2611.2,2611.1,0.05077682]
[1724095952013,7.18701703,2611.2,2610.7,3.83026]
[1724095952515,7.18701703,2611.2,2610.8,0.05077682]
[1724095952516,2.3636,2611.0,2610.8,0.05077682]
[1724095952717,2.3636,2611.0,2610.6,3.83046]
[1724095953027,6.19367,2611.0,2610.9,0.05077682]
[1724095953186,2.3636,2611.0,2610.3,3.83087]
[1724095953381,2.3636,2611.0,2610.9,0.05077682]
[1724095953696,2.3636,2611.0,2610.7,7.66056]
[1724095954001,2.3636,2611.0,2610.8,3.88099682]
[1724095954320,3.82965,2611.2,2610.8,3.88099682]
[1724095955026,3.82965,2611.2,2610.8,0.05077682]
[1724095955181,5.195295,2611.1,2610.8,0.05077682]
[1724095955381,1.365485,2611.1,2610.7,7.66057]
[1724095955582,3.82965,2611.2,2610.9,0.05077682]
[1724095955794,3.82965,2611.2,2610.7,3.83025]
[1724095955978,3.82965,2611.2,2611.0,0.05077682]
[1724095956188,3.82965,2611.2,2610.7,3.83025]
[1724095956393,3.82965,2611.2,2611.1,0.05043348]
[1724095956580,5.578081,2611.2,2610.7,3.83025]
[1724095956788,5.578081,2611.2,2611.1,0.05043348]
[1724095957116,5.578081,2611.2,2610.7,3.83025]
[1724095957317,5.578081,2611.2,2611.1,0.05043348]
[1724095957489,5.578081,2611.2,2610.7,3.83025]
[1724095957490,3.82986,2611.1,2610.7,3.83025]
[1724095957687,3.82986,2611.1,2609.6,4.90743474]
[1724095957688,2.3697,2610.7,2610.1,3.83115]
[1724095957904,6.20015,2610.7,2610.3,3.83095]
[1724095958224,2.3697,2610.7,2610.3,3.83095]
[1724095958419,6.2001,2610.7,2610.4,0.05043348]
[1724095958721,7.20312,2610.7,2610.4,0.05043348]
[1724095959483,3.8306,2610.6,2610.1,3.83119]
[1724095959822,3.8306,2610.6,2610.2,0.05043348]
[1724095960030,2.2963,2610.4,2610.2,0.05043348]
[1724095960320,2.2963,2610.4,2610.0,3.83129]
[1724095960321,0.612707,2610.3,2610.0,3.83129]
[1724095960535,6.12718,2610.4,2610.3,0.04875839]
[1724095960700,6.12718,2610.4,2610.0,3.83129]
[1724095960909,6.12718,2610.4,2610.1,0.04875839]
[1724095961601,2.2963,2610.4,2610.1,0.04875839]
[1724095962257,6.12714,2610.4,2610.1,0.04875839]
[1724095962707,6.739854,2610.4,2610.1,0.04875839]
[1724095963439,6.12714,2610.4,2610.1,0.04875839]
[1724095965133,2.2963,2610.4,2610.1,0.04875839]
[1724095965351,3.83054,2610.6,2610.1,3.87999839]
[1724095965659,2.2784,2610.7,2610.3,3.83094]
[1724095966018,2.2784,2610.7,2610.4,3.87965298]
[1724095966354,9.93881,2610.9,2610.4,3.87964298]
[1724095966499,9.93877,2610.9,2610.4,3.87964298]
[1724095966697,3.83024,2610.8,2610.4,0.04890298]
[1724095969360,3.83045,2610.7,2610.4,0.04890298]
[1724095971136,3.83024,2610.8,2610.4,0.04890298]
[1724095971321,5.91449204,2610.9,2610.4,0.04890298]
[1724095971322,9.74460204,2610.9,2610.4,0.04890298]
[1724095971535,2.2784,2610.9,2610.5,3.83061]
[1724095971921,2.2784,2610.9,2610.5,3.87977194]
[1724095972130,6.10861,2610.9,2610.5,0.04916194]
[1724095972323,3.8303,2610.8,2610.5,0.04916194]
[1724095972618,3.83042,2610.7,2610.3,3.83088]
[1724095972829,3.83042,2610.7,2610.6,0.04914989]
[1724095973060,3.83042,2610.7,2610.3,3.83088]
[1724095973417,3.83042,2610.7,2610.4,0.04916194]
[1724095973884,2.2784,2610.9,2610.4,0.04916194]
[1724095973885,2.3198,2610.9,2610.4,0.04916194]
[1724095974013,6.23088,2610.5,2610.0,3.8314]
[1724095975860,6.23088,2610.5,2610.1,3.83125]
[1724095977473,10.06165,2610.5,2610.1,3.83125]
[1724095978160,10.06165,2610.5,2609.9,3.83145]
[1724095978161,3.83085,2610.4,2609.9,3.83145]
[1724095978449,3.83101,2610.3,2609.9,3.83145]
[1724095978972,7.66179,2610.4,2609.9,3.83145]
[1724095979148,3.83099,2610.3,2609.9,3.83145]
[1724095980216,3.83084,2610.4,2609.9,7.66287]
[1724095980452,3.83084,2610.4,2610.0,3.83137]
[1724095981863,3.83116,2610.2,2609.8,3.83168]
[1724095982014,6.09958,2610.1,2609.6,3.83191]
[1724095982213,6.09958,2610.1,2609.5,2.3671]
[1724095982214,6.09958,2610.1,2609.5,3.83209]
[1724095982458,1.652,2610.0,2609.6,3.83193]
[1724095983353,1.652,2610.0,2609.7,3.83184]
[1724095983515,2.2683,2610.1,2609.8,3.8317]
[1724095983717,6.09957,2610.1,2609.7,3.83184]
[1724095984084,2.2683,2610.1,2609.7,3.83176]
[1724095985473,2.2683,2610.1,2609.8,3.8317]
[1724095986068,6.1784,2610.4,2609.9,3.83146]
[1724095986242,3.83098,2610.3,2609.8,4.598046]
[1724095986443,3.83098,2610.3,2609.8,3.83159]
[1724095986955,3.83098,2610.3,2609.9,3.88067184]
[1724095987803,3.83098,2610.3,2609.9,0.04913184]
[1724095987965,3.83113,2610.2,2609.9,0.04913184]
[1724095988972,7.66235,2610.2,2609.9,0.04913184]
[1724095989282,3.83113,2610.2,2609.7,3.83185]
[1724095989467,3.83113,2610.2,2610.0,0.04913184]
[1724095989669,3.83113,2610.2,2609.7,4.829613]
[1724095989899,3.83113,2610.2,2610.1,0.04913184]
[1724095990040,3.83113,2610.2,2609.7,3.83185]
[1724095990239,3.83113,2610.2,2610.1,0.04913184]
[1724095990447,3.83113,2610.2,2609.7,3.83185]
[1724095990736,3.83113,2610.2,2610.1,0.04913184]
[1724095990941,3.83113,2610.2,2609.8,3.83164]
[1724095991384,3.83114,2610.2,2609.8,3.83164]
[1724095991584,3.83114,2610.2,2609.9,0.04913184]
[1724095991975,3.83129,2610.1,2609.9,0.04913184]
[1724095992175,2.4882,2610.0,2609.9,0.04913184]
[1724095992376,2.4882,2610.0,2609.6,3.83198]
[1724095992582,2.4882,2610.0,2609.5,3.83212]
[1724095992583,3.83158,2609.9,2609.5,3.83212]
[1724095993566,6.31963,2610.0,2609.5,3.83212]
[1724095994669,6.31963,2610.0,2609.6,3.83199]
[1724095995386,2.4882,2610.0,2609.6,7.66398]
[1724095995586,6.08774,2610.3,2609.8,2.4224]
[1724095995762,6.08774,2610.3,2609.9,3.83155]
[1724095996095,9.91884,2610.3,2609.8,3.83169]
[1724095996300,6.08774,2610.3,2609.8,3.83169]
[1724095996508,6.08774,2610.3,2609.9,3.83155]
[1724095996871,3.83085,2610.4,2609.9,7.66293]
[1724095997064,6.30451,2610.5,2610.0,2.4224]
[1724095997065,6.30439,2610.5,2610.0,2.4224]
[1724095997404,3.83083,2610.4,2610.0,6.25381]
[1724095997598,3.83083,2610.4,2610.0,3.83141]
[1724095998801,3.83083,2610.4,2609.9,3.83155]
[1724095999568,6.30439,2610.5,2610.0,3.83134]
[1724095999907,6.30439,2610.5,2610.1,3.83116]
[1724095999908,6.3044,2610.5,2610.1,3.83116]
[1724096001098,6.3044,2610.5,2610.0,3.83141]
[1724096001605,3.83085,2610.4,2609.9,3.83155]
[1724096001801,4.46129,2610.4,2609.9,3.83155]
[1724096002579,3.83085,2610.4,2609.9,3.83155]
[1724096003704,3.83085,2610.4,2609.9,6.19225]
[1724096003902,3.83085,2610.4,2609.9,3.83155]
[1724096004130,3.83085,2610.4,2610.0,0.04913634]
[1724096004488,5.48285,2610.4,2610.0,0.04913634]
[1724096005726,2.3365,2610.1,2610.0,0.04913634]
[1724096006066,3.8316,2609.9,2609.4,6.28598]
[1724096006214,3.8316,2609.9,2609.5,0.04913634]
[1724096007139,3.8316,2609.9,2609.5,3.88124634]
[1724096009922,5.48342,2610.0,2609.5,7.71329634]
[1724096010438,3.83142,2610.0,2609.5,3.88118634]
[1724096011681,7.66293,2610.0,2609.5,3.88118634]
[1724096011825,9.31493,2610.0,2609.5,3.88118634]
[1724096012029,5.48342,2610.0,2609.5,3.88118634]
[1724096012837,9.31492,2610.0,2609.5,3.88118634]
[1724096013970,5.48342,2610.0,2609.5,3.88118634]
[1724096014883,9.31491,2610.0,2609.5,3.88118634]
[1724096015381,3.83161,2609.9,2609.5,3.88118634]
[1724096016159,6.648561,2610.0,2609.5,3.88118634]
[1724096016347,5.48342,2610.0,2609.5,3.88118634]
[1724096016782,5.48342,2610.0,2609.6,3.83199]
[1724096017143,5.48342,2610.0,2609.7,0.04942558]
[1724096017344,1.652,2610.0,2609.7,3.88127558]
[1724096020189,1.652,2610.0,2609.7,0.04942558]
[1724096020391,6.648604,2610.0,2609.7,0.04942558]
[1724096020587,3.83159,2609.9,2609.7,0.04942558]
[1724096020792,3.83159,2609.9,2609.5,3.83205]
[1724096021011,3.83159,2609.9,2609.8,0.04942558]
[1724096021218,6.648554,2610.0,2609.6,3.832]
[1724096021527,3.83143,2610.0,2609.6,3.832]
[1724096021739,3.83143,2610.0,2609.7,0.04942558]
[1724096022093,2.40360493,2610.3,2609.9,3.83155]
[1724096022094,6.09999,2610.3,2609.9,3.83155]
[1724096022295,1.652,2610.4,2610.0,3.83128]
[1724096022533,1.652,2610.4,2610.0,3.88068752]
[1724096022534,5.48283,2610.4,2610.0,3.88068752]
[1724096023034,1.652,2610.4,2610.0,3.88068752]
[1724096023209,8.5044703,2610.5,2610.0,3.88068752]
[1724096023210,4.0567803,2610.6,2610.3,3.83093]
[1724096023411,1.652,2610.6,2610.3,3.83093]
[1724096023625,1.652,2610.6,2610.4,0.0493352]
[1724096024133,1.652,2610.6,2610.5,0.04923879]
[1724096024634,1.652,2610.6,2610.2,3.83104]
[1724096025101,1.652,2610.6,2610.3,0.04923879]
[1724096025300,6.28239,2610.7,2610.3,0.04923879]
[1724096025301,2.4519,2610.7,2610.3,0.04923879]
[1724096025533,4.1039,2610.7,2610.4,3.83082]
[1724096025713,4.1039,2610.7,2610.4,3.87986601]
[1724096025907,4.1039,2610.7,2610.4,0.04904601]
[1724096026237,1.652,2610.5,2610.4,0.04904601]
[1724096027433,1.652,2610.5,2610.2,3.83103]
[1724096028019,6.2823,2610.7,2610.3,0.04902794]
[1724096028020,3.83056,2610.6,2610.3,0.04902794]
[1724096028222,1.652,2610.4,2610.3,0.04902794]
[1724096028428,1.652,2610.4,2610.0,3.83132]
[1724096028744,1.652,2610.4,2610.0,7.66264]
[1724096029042,1.652,2610.4,2610.1,0.04907011]
[1724096029832,1.652,2610.4,2610.1,3.88031011]
[1724096033615,1.652,2610.2,2610.1,0.04907011]
[1724096033931,2.3309,2609.7,2609.3,3.83242]
[1724096034112,1.652,2609.5,2609.3,3.83242]
[1724096034312,1.652,2609.5,2609.2,3.8325]
[1724096034721,1.652,2609.5,2609.2,7.66501]
[1724096034952,1.652,2609.5,2609.2,3.8325]
[1724096035106,1.652,2609.5,2609.0,3.94966235]
[1724096035107,1.652,2609.3,2609.0,3.94966235]
[1724096035453,4.9969,2609.5,2609.0,3.94966235]
[1724096035454,1.652,2609.1,2609.0,3.94966235]
[1724096036646,2.4492,2609.3,2609.0,3.94966235]
[1724096037633,2.4492,2609.3,2609.0,0.11679235]
[1724096037889,3.19381,2609.3,2609.0,0.11679235]
[1724096038029,7.02626,2609.3,2609.0,0.11679235]
[1724096038537,10.85883,2609.3,2609.0,0.11679235]
[1724096038954,7.02626,2609.3,2609.0,0.11679235]
[1724096039175,3.8327,2609.2,2609.0,0.11679235]
[1724096039333,4.918596,2609.2,2609.0,0.11679235]
[1724096039533,3.83273,2609.1,2609.0,0.11679235]
[1724096043385,10.06196,2609.1,2609.0,0.11679235]
[1724096043677,17.86169,2609.1,2609.0,0.11679235]
[1724096043877,18.41169,2609.1,2609.0,0.11679235]
[1724096044078,20.4359096,2609.1,2609.0,0.11679235]
[1724096044607,3.83412,2608.2,2607.6,6.289]
[1724096044738,3.83412,2608.2,2607.7,3.83469]
[1724096044936,2.2571,2608.5,2607.8,3.83462]
[1724096044937,3.83392,2608.3,2607.8,3.83462]
[1724096045574,3.83392,2608.3,2607.9,0.04477242]
[1724096046274,3.83392,2608.3,2607.9,3.87927242]
[1724096046486,3.83428,2608.1,2607.9,0.04477242]
[1724096046782,0.631718,2608.0,2607.6,3.83494]
[1724096046942,3.83428,2608.1,2607.6,3.83494]
[1724096047838,3.83428,2608.1,2607.6,7.66974]
[1724096048038,3.83428,2608.1,2607.6,3.83487]
[1724096048275,3.83428,2608.1,2607.7,0.04477242]
[1724096048974,7.66858,2608.1,2607.7,0.04477242]
[1724096049286,5.246128,2608.1,2607.7,0.04477242]
[1724096049505,6.31706,2608.2,2607.8,3.83463]
[1724096049803,6.31706,2608.2,2607.7,0.04477242]
[1724096049804,3.834,2608.3,2607.9,0.04617582]
[1724096050087,3.83413,2608.2,2607.8,3.83464]
[1724096050260,3.834,2608.3,2607.8,3.83464]
[1724096050261,3.834,2608.3,2607.9,0.04617582]
[1724096050459,1.095699,2608.3,2607.9,0.04617582]
[1724096050675,3.84548818,2608.9,2608.2,3.83405]
[1724096050676,3.83343,2608.7,2608.2,3.83405]
[1724096050871,2.2691,2608.8,2608.4,3.83365]
[1724096051049,2.2691,2608.8,2608.5,0.04617582]
[1724096051780,3.83304,2608.9,2608.5,0.04617582]
[1724096052090,4.599627,2608.9,2608.5,0.04617582]
[1724096052292,6.29193,2609.1,2608.5,3.87967582]
[1724096052293,3.83288,2609.0,2608.5,3.87967582]
[1724096052466,6.29192,2609.1,2608.6,3.83346]
[1724096052881,10.12474,2609.1,2608.7,0.04617582]
[1724096053461,2.4591,2609.1,2608.7,3.87949582]
[1724096054303,7.304269,2609.1,2608.7,0.04617582]
[1724096056177,3.83304,2608.9,2608.7,0.04617582]
[1724096056392,3.83288,2609.0,2608.5,3.83353]
[1724096056602,2.4591,2609.1,2608.8,0.04617582]
[1724096056904,3.83269,2609.2,2608.9,0.04617582]
[1724096057111,0.766524,2609.1,2608.7,3.83325]
[1724096057402,6.14405,2609.5,2608.8,0.04617582]
[1724096057771,3.83242,2609.4,2608.9,3.83295]
[1724096057979,3.83242,2609.4,2608.9,3.87912582]
[1724096058181,6.14405,2609.5,2608.9,3.87912582]
[1724096058383,6.24837,2609.7,2609.0,3.83281]
[1724096058597,3.83223,2609.5,2609.0,3.83287]
[1724096058795,7.66449,2609.5,2609.0,3.83287]
[1724096058968,7.66449,2609.5,2608.8,3.83306]
[1724096058969,3.83249,2609.3,2609.1,0.04617582]
[1724096059379,3.83249,2609.3,2608.8,3.83306]
[1724096059888,3.83249,2609.3,2608.9,3.87919582]
[1724096060612,7.66451,2609.5,2609.0,3.83288]
[1724096061017,3.8323,2609.4,2609.0,3.83288]
[1724096061182,3.8323,2609.4,2609.1,0.04617582]
[1724096061718,6.24838,2609.7,2609.2,3.83258]
[1724096062017,3.83229,2609.4,2609.3,0.04555512]
[1724096062371,3.83229,2609.4,2608.9,3.83296]
[1724096062673,3.83247,2609.3,2608.8,3.8331]
[1724096063388,3.83247,2609.3,2608.9,0.04555512]
[1724096063912,3.8326,2609.2,2608.9,0.04555512]
[1724096064617,3.83273,2609.1,2608.9,0.04555512]
[1724096064806,3.83273,2609.1,2608.6,3.83336]
[1724096065015,3.83273,2609.1,2609.0,0.04545271]
[1724096065177,3.83273,2609.1,2608.6,3.83336]
[1724096065525,4.9181406,2609.1,2608.6,3.83336]
[1724096065692,4.9181406,2609.1,2608.7,0.04545271]
[1724096068105,3.83291,2609.0,2608.7,0.04545271]
[1724096068295,3.83291,2609.0,2608.6,3.83346]
[1724096068494,3.83291,2609.0,2608.8,0.04393762]
[1724096068698,0.87510506,2608.9,2608.6,3.83346]
[1724096068896,4.70814506,2608.9,2608.4,3.83369]
[1724096069133,3.83324,2608.8,2608.4,3.83369]
[1724096069940,6.27015,2608.9,2608.4,7.66735]
[1724096070343,6.27015,2608.9,2608.4,3.83366]
[1724096070511,3.83325,2608.8,2608.4,3.83366]
[1724096071444,6.27014,2608.9,2608.4,3.83366]